bitfinex/quotes_BTCUSD_20250527
["timestamp","ask_amount","ask_price","bid_price","bid_amount"]
[1748378096258,0.25667408,109790.0,109780.0,42.85447242]
[1748378096921,0.25667408,109790.0,109780.0,42.57383242]
[1748378097590,0.25667408,109790.0,109780.0,43.02588433]
[1748378097812,0.25667408,109790.0,109780.0,43.04114251]
[1748378102175,0.19227408,109790.0,109780.0,43.04114251]
[1748378106413,0.19227408,109790.0,109780.0,43.13607558]
[1748378106676,0.19227408,109790.0,109780.0,43.18916646]
[1748378107560,0.19227408,109790.0,109780.0,43.371349]
[1748378107984,0.19227408,109790.0,109780.0,43.18916646]
[1748378109498,0.19227408,109790.0,109780.0,43.18916646]
[1748378111510,0.19227408,109790.0,109780.0,43.371349]
[1748378111733,0.20138212,109790.0,109780.0,43.371349]
[1748378111983,0.21048983,109790.0,109780.0,44.21526805]
[1748378112199,0.20086249,109800.0,109790.0,0.1967068]
[1748378112416,0.00049845,109800.0,109790.0,1.97692665]
[1748378112643,0.2094515,109810.0,109800.0,0.2565921]
[1748378112876,0.20945208,109810.0,109800.0,1.36201664]
[1748378113338,0.20945208,109810.0,109800.0,1.37112394]
[1748378113565,0.20034578,109810.0,109800.0,1.36201664]
[1748378113794,0.01821194,109810.0,109800.0,2.26333651]
[1748378114017,0.03842463,109810.0,109800.0,2.26333651]
[1748378114461,0.03842463,109810.0,109800.0,1.8112846]
[1748378114681,0.22966395,109810.0,109800.0,1.8112846]
[1748378115346,0.22766395,109810.0,109800.0,1.8112846]
[1748378115799,0.22766469,109810.0,109800.0,1.8122846]
[1748378116444,0.03642529,109810.0,109800.0,1.8122846]
[1748378116656,0.21855806,109810.0,109800.0,1.8122846]
[1748378118354,0.22766469,109810.0,109800.0,1.8122846]
[1748378119460,0.02731874,109810.0,109800.0,1.8122846]
[1748378119685,0.21855806,109810.0,109800.0,1.8122846]
[1748378119903,0.22766469,109810.0,109800.0,1.8122846]
[1748378120573,0.21855864,109810.0,109800.0,1.80317772]
[1748378120796,0.21855864,109810.0,109800.0,1.81228477]
[1748378121223,0.02731849,109810.0,109800.0,1.82139165]
[1748378121442,0.03642496,109810.0,109800.0,1.82139165]
[1748378122552,0.04553151,109810.0,109800.0,1.82139165]
[1748378122774,0.22766428,109810.0,109800.0,1.82139165]
[1748378123005,0.21855831,109810.0,109800.0,0.8990739]
[1748378123230,0.20945209,109810.0,109800.0,2.10247772]
[1748378125620,0.20034579,109810.0,109800.0,2.10247772]
[1748378126101,0.20034579,109810.0,109800.0,1.18926677]
[1748378126369,0.19123932,109810.0,109800.0,2.28279664]
[1748378127726,0.18213277,109810.0,109800.0,2.28279664]
[1748378129263,0.18213277,109810.0,109800.0,2.25109664]
[1748378130369,0.18213277,109810.0,109800.0,2.21849664]
[1748378130592,0.18213277,109810.0,109800.0,2.22760394]
[1748378130841,0.18213277,109810.0,109800.0,2.31865789]
[1748378131084,0.18213277,109810.0,109800.0,2.35045789]
[1748378131304,0.18213277,109810.0,109800.0,2.38245789]
[1748378132963,0.18213277,109810.0,109800.0,1.47835407]
[1748378133166,0.18213277,109810.0,109800.0,2.38245789]
[1748378133793,0.19123932,109810.0,109800.0,2.40067207]
[1748378133997,0.20034562,109810.0,109800.0,2.40067223]
[1748378135055,0.20034562,109810.0,109800.0,2.79371223]
[1748378136134,0.20034562,109810.0,109800.0,2.76171223]
[1748378136550,0.20034562,109810.0,109800.0,2.7526051]
[1748378137851,0.20945225,109810.0,109800.0,2.76171215]
[1748378139865,0.20945225,109810.0,109800.0,2.72991215]
[1748378140644,0.01821235,109810.0,109800.0,2.73901903]
[1748378140869,0.00910605,109810.0,109800.0,2.80211903]
[1748378141094,0.02731874,109810.0,109800.0,2.80211903]
[1748378141322,0.01821227,109810.0,109800.0,2.80211903]
[1748378141540,0.02731874,109810.0,109800.0,2.80211903]
[1748378141972,0.21855806,109810.0,109800.0,2.80211903]
[1748378142505,0.03642529,109810.0,109800.0,2.80211903]
[1748378142726,0.25840433,109830.0,109810.0,0.0273189]
[1748378142935,0.19122183,109820.0,109810.0,0.5387255]
[1748378143153,0.19122183,109820.0,109810.0,0.99673945]
[1748378144192,0.18211619,109820.0,109810.0,1.43968481]
[1748378144415,0.18411619,109820.0,109810.0,1.43968481]
[1748378144621,0.18411619,109820.0,109810.0,1.25755204]
[1748378145065,0.18411619,109820.0,109810.0,1.26651614]
[1748378145491,0.18411619,109820.0,109810.0,1.71856805]
[1748378145937,0.18611619,109820.0,109810.0,1.71856805]
[1748378146836,0.18411619,109820.0,109810.0,1.26651614]
[1748378147145,0.18211619,109820.0,109810.0,1.26651614]
[1748378147785,0.21471619,109820.0,109810.0,1.26651614]
[1748378147988,0.21571619,109820.0,109810.0,1.26651614]
[1748378148188,0.18311619,109820.0,109810.0,2.05856805]
[1748378148398,0.18311619,109820.0,109810.0,2.24070082]
[1748378148623,0.18311619,109820.0,109810.0,2.24980745]
[1748378149059,0.18311619,109820.0,109810.0,2.05856805]
[1748378149899,0.24811619,109820.0,109810.0,1.22955614]
[1748378150103,0.24811619,109820.0,109810.0,1.59651614]
[1748378152962,0.24811619,109820.0,109810.0,1.58755204]
[1748378155189,0.02020904,109830.0,109820.0,0.56486848]
[1748378155395,0.21141395,109830.0,109820.0,1.12323252]
[1748378155675,0.21141395,109830.0,109820.0,1.57528443]
[1748378156154,0.21141395,109830.0,109820.0,1.58438999]
[1748378156375,0.21241395,109830.0,109820.0,1.58438999]
[1748378156804,0.21241395,109830.0,109820.0,1.59349546]
[1748378157016,0.01824755,109840.0,109830.0,0.55941353]
[1748378157235,0.03645426,109840.0,109830.0,2.01250525]
[1748378157469,0.20943462,109840.0,109830.0,1.35103981]
[1748378157754,0.26303089,109840.0,109830.0,1.36558066]
[1748378157974,0.26303089,109840.0,109830.0,1.55678524]
[1748378158408,0.26303089,109840.0,109830.0,1.37468564]
[1748378158634,0.26303089,109840.0,109830.0,1.54768026]
[1748378159056,0.26403089,109840.0,109830.0,1.57021296]
[1748378159300,0.26403089,109840.0,109830.0,0.92695647]
[1748378159301,0.26603089,109840.0,109830.0,0.92695647]
[1748378159562,0.26603089,109840.0,109830.0,1.37900838]
[1748378160237,0.26603089,109840.0,109830.0,1.56110798]
[1748378160483,0.26603089,109840.0,109830.0,1.37900838]
[1748378161675,0.26603089,109840.0,109830.0,1.67830838]
[1748378162661,0.26603089,109840.0,109830.0,2.13036029]
[1748378164206,0.26603089,109840.0,109830.0,2.52336029]
[1748378166530,0.26603089,109840.0,109830.0,2.48531172]
[1748378167155,0.26603089,109840.0,109830.0,2.03325981]
[1748378168647,0.26603089,109840.0,109830.0,2.48531172]
[1748378169689,0.26603089,109840.0,109830.0,2.03325981]
[1748378170749,0.26603089,109840.0,109830.0,2.03321981]
[1748378170895,0.26603089,109840.0,109830.0,0.47952]
[1748378171522,0.26603089,109840.0,109830.0,0.93157191]
[1748378174669,0.26603089,109840.0,109830.0,0.7213228]
[1748378176547,0.26603089,109840.0,109830.0,0.53857191]
[1748378176755,0.26603089,109840.0,109830.0,0.62962586]
[1748378177825,0.26603089,109840.0,109830.0,0.53857191]
[1748378179370,0.0323,109820.0,109800.0,0.0021339]
[1748378179590,0.98733115,109810.0,109800.0,0.0021339]
[1748378179827,0.20038196,109790.0,109780.0,42.56432242]
[1748378180042,0.20038196,109790.0,109780.0,42.65537637]
[1748378180043,0.23268196,109790.0,109780.0,42.65537637]
[1748378180260,0.51292196,109790.0,109780.0,42.11227051]
[1748378180499,0.23268196,109790.0,109780.0,42.56482087]
[1748378180757,0.51288196,109790.0,109780.0,43.01687278]
[1748378180994,0.26418196,109790.0,109780.0,42.56482087]
[1748378181224,0.26418196,109790.0,109780.0,42.11276896]
[1748378181475,0.26418196,109790.0,109780.0,42.65587482]
[1748378182124,0.26418196,109790.0,109780.0,42.20482291]
[1748378182342,0.26418196,109790.0,109780.0,42.20582291]
[1748378182554,0.27816261,109790.0,109780.0,42.20582291]
[1748378183847,0.27816261,109790.0,109780.0,42.11476896]
[1748378184273,0.27816261,109790.0,109780.0,42.11472896]
[1748378190792,0.55844261,109790.0,109780.0,42.11472896]
[1748378193680,0.27816261,109790.0,109780.0,42.11472896]
[1748378193899,0.55848261,109790.0,109780.0,42.11472896]
[1748378194798,0.55848261,109790.0,109780.0,42.20578291]
[1748378195889,0.52694261,109790.0,109780.0,42.20578291]
[1748378196803,0.52694261,109790.0,109780.0,42.21476315]
[1748378197453,0.52694261,109790.0,109780.0,41.82176315]
[1748378199979,0.24666261,109790.0,109780.0,41.82176315]
[1748378200185,0.49464261,109790.0,109780.0,41.82176315]
[1748378200804,0.21436261,109790.0,109780.0,42.42463337]
[1748378200925,0.21436261,109790.0,109780.0,41.82176315]
[1748378201149,0.21436261,109790.0,109780.0,42.42463337]
[1748378202215,0.21436261,109790.0,109780.0,41.82176315]
[1748378203808,0.24476261,109790.0,109780.0,41.82176315]
[1748378205454,0.27626261,109790.0,109780.0,41.82176315]
[1748378205945,0.27626261,109790.0,109780.0,42.27387404]
[1748378209012,0.21436261,109790.0,109780.0,42.27387404]
[1748378210514,0.24636261,109790.0,109780.0,42.27387404]
[1748378210973,0.21436261,109790.0,109780.0,42.27387404]
[1748378211430,0.21436261,109790.0,109780.0,42.36492799]
[1748378218286,0.21436261,109790.0,109780.0,41.9128171]
[1748378218516,0.21436261,109790.0,109780.0,42.36492799]
[1748378219682,0.20038196,109790.0,109780.0,42.36492799]
[1748378224110,0.20038196,109790.0,109780.0,42.81703888]
[1748378225372,0.20038196,109790.0,109780.0,42.80502602]
[1748378230007,0.20038196,109790.0,109780.0,41.80975029]
[1748378230234,0.20038196,109790.0,109780.0,42.16182699]
[1748378230235,0.23098196,109790.0,109780.0,42.16182699]
[1748378230480,0.71559285,109790.0,109780.0,41.6232361]
[1748378230716,1.67195409,109790.0,109780.0,41.6232361]
[1748378231173,1.7041706,109790.0,109780.0,41.5920361]
[1748378231413,1.85783958,109790.0,109780.0,41.5587361]
[1748378231630,1.77854889,109790.0,109780.0,41.5587361]
[1748378231866,1.77854889,109790.0,109780.0,41.5265361]
[1748378232104,1.47868717,109790.0,109780.0,41.5265361]
[1748378232608,1.50274849,109790.0,109780.0,41.5265361]
[1748378232820,1.50274849,109790.0,109780.0,41.5255361]
[1748378233033,1.39063322,109790.0,109780.0,41.5265361]
[1748378233243,1.39463322,109790.0,109780.0,41.5275361]
[1748378234134,1.32143682,109790.0,109780.0,41.5275361]
[1748378235025,1.68807682,109790.0,109780.0,41.5275361]
[1748378236281,1.30689597,109790.0,109780.0,41.5275361]
[1748378236700,1.58709597,109790.0,109780.0,41.5275361]
[1748378238934,1.67818992,109790.0,109780.0,41.5275361]
[1748378243565,1.58713597,109790.0,109780.0,41.5275361]
[1748378244192,1.58613597,109790.0,109780.0,41.5275361]
[1748378245751,1.30589597,109790.0,109780.0,41.5275361]
[1748378245963,0.98273591,109790.0,109780.0,41.5275361]
[1748378251080,1.58609597,109790.0,109780.0,41.5275361]
[1748378251367,1.30589597,109790.0,109780.0,41.5275361]
[1748378251571,0.67003591,109790.0,109780.0,41.5380306]
[1748378251809,0.91963591,109790.0,109780.0,41.5380306]
[1748378252261,0.63943591,109790.0,109780.0,41.5380306]
[1748378252740,0.91963591,109790.0,109780.0,41.5380306]
[1748378252954,0.91963591,109790.0,109780.0,41.5275361]
[1748378260145,0.94983591,109790.0,109780.0,41.5275361]
[1748378263586,1.58619597,109790.0,109780.0,41.5275361]
[1748378267745,0.98283591,109790.0,109780.0,41.5275361]
[1748378267928,1.58619597,109790.0,109780.0,41.5275361]
[1748378270404,1.67724992,109790.0,109780.0,41.5275361]
[1748378271356,1.58619597,109790.0,109780.0,41.5275361]
[1748378272011,1.60073682,109790.0,109780.0,41.5275361]
[1748378273720,1.66355878,109790.0,109780.0,41.5275361]
[1748378274764,1.60065682,109790.0,109780.0,41.5275361]
[1748378274969,1.58611597,109790.0,109780.0,41.5275361]
[1748378277211,1.64900823,109790.0,109780.0,41.5275361]
[1748378277913,1.64900823,109790.0,109780.0,41.27154046]
[1748378277914,1.58611597,109790.0,109780.0,41.27154046]
[1748378279440,1.30599597,109790.0,109780.0,41.27154046]
[1748378279656,0.94975591,109790.0,109780.0,41.27154046]
[1748378280330,0.91955591,109790.0,109780.0,41.30334046]
[1748378280549,0.63943591,109790.0,109780.0,41.30334046]
[1748378280749,0.91955591,109790.0,109780.0,41.30334046]
[1748378281165,1.52291597,109790.0,109780.0,41.30334046]
[1748378281375,1.24279597,109790.0,109780.0,41.30334046]
[1748378281582,0.91955591,109790.0,109780.0,41.30334046]
[1748378283889,0.63943591,109790.0,109780.0,41.30334046]
[1748378284116,0.91955591,109790.0,109780.0,41.30334046]
[1748378284986,1.52291597,109790.0,109780.0,41.30334046]
[1748378291770,0.91955591,109790.0,109780.0,41.30334046]
[1748378293253,1.52291597,109790.0,109780.0,41.30334046]
[1748378294465,1.24279597,109790.0,109780.0,41.30334046]
[1748378294681,0.91955591,109790.0,109780.0,41.33254046]
[1748378295301,0.91955591,109790.0,109780.0,41.30334046]
[1748378295953,0.63943591,109790.0,109780.0,41.30334046]
[1748378296181,0.91955591,109790.0,109780.0,41.30334046]
[1748378299959,1.37186852,109790.0,109780.0,41.30334046]
[1748378300199,1.37186852,109790.0,109780.0,41.33504046]
[1748378301028,1.37186852,109790.0,109780.0,41.30334046]
[1748378301429,1.37186852,109790.0,109780.0,41.27154046]
[1748378301640,1.40236852,109790.0,109780.0,41.27154046]
[1748378302078,1.37186852,109790.0,109780.0,41.27154046]
[1748378302285,1.09174852,109790.0,109780.0,41.27154046]
[1748378302534,1.37182852,109790.0,109780.0,41.27154046]
[1748378303036,1.37182852,109790.0,109780.0,41.30164046]
[1748378307700,1.37182852,109790.0,109780.0,41.39269441]
[1748378308562,1.37182852,109790.0,109780.0,41.30164046]
[1748378309573,1.37182852,109790.0,109780.0,41.33134046]
[1748378309912,1.37182852,109790.0,109780.0,41.30164046]
[1748378311797,0.63943591,109790.0,109780.0,41.30164046]
[1748378312028,0.91951591,109790.0,109780.0,41.07172715]
[1748378312259,0.91951591,109790.0,109780.0,41.1627811]
[1748378312493,1.37182852,109790.0,109780.0,41.1627811]
[1748378312728,1.37182852,109790.0,109780.0,41.07172715]
[1748378312968,0.63943591,109790.0,109780.0,41.07172715]
[1748378313309,1.37182852,109790.0,109780.0,40.86358172]
[1748378317708,1.37182852,109790.0,109780.0,40.83588172]
[1748378325054,0.91951591,109790.0,109780.0,40.83588172]
[1748378325274,1.37182852,109790.0,109780.0,40.83588172]
[1748378327361,1.09174852,109790.0,109780.0,40.83588172]
[1748378327568,1.37178852,109790.0,109780.0,40.83588172]
[1748378328028,1.37178852,109790.0,109780.0,40.86398172]
[1748378331038,1.09174852,109790.0,109780.0,40.86398172]
[1748378331242,1.37178852,109790.0,109780.0,40.86398172]
[1748378331463,0.91947591,109790.0,109780.0,40.86398172]
[1748378331676,1.37178852,109790.0,109780.0,40.86398172]
[1748378334716,1.37178852,109790.0,109780.0,40.83588172]
[1748378342411,1.00069457,109790.0,109780.0,40.83588172]
[1748378342626,0.48838196,109790.0,109780.0,40.86588172]
[1748378343985,0.20838196,109790.0,109780.0,40.86588172]
[1748378344202,0.48838196,109790.0,109780.0,40.86588172]
[1748378346476,0.20838196,109790.0,109780.0,40.86588172]
[1748378346682,0.48838196,109790.0,109780.0,40.86588172]
[1748378347443,0.94069457,109790.0,109780.0,40.86588172]
[1748378347863,0.94069457,109790.0,109780.0,40.83588172]
[1748378348664,0.94065457,109790.0,109780.0,40.83588172]
[1748378349122,0.48834196,109790.0,109780.0,40.95803567]
[1748378349330,0.48834196,109790.0,109780.0,40.86698172]
[1748378350957,0.20838196,109790.0,109780.0,41.31929433]
[1748378351221,0.20838196,109790.0,109780.0,41.40557433]
[1748378351445,0.20838196,109790.0,109780.0,41.85788694]
[1748378351660,0.20838196,109790.0,109780.0,42.43327484]
[1748378352100,0.20438196,109790.0,109780.0,42.43227484]
[1748378352308,0.20538196,109790.0,109780.0,42.43227484]
[1748378352513,0.20538196,109790.0,109780.0,42.45681569]
[1748378352718,0.20138196,109790.0,109780.0,42.45581569]
[1748378353125,0.20338196,109790.0,109780.0,42.45581569]
[1748378353743,0.20238196,109790.0,109780.0,42.45581569]
[1748378353952,0.20038196,109790.0,109780.0,42.45581569]
[1748378354157,0.20138196,109790.0,109780.0,42.45781569]
[1748378354773,0.20138196,109790.0,109780.0,42.45881569]
[1748378355540,0.19227408,109790.0,109780.0,42.45881569]
[1748378357739,0.19227408,109790.0,109780.0,42.44881569]
[1748378359793,0.19227408,109790.0,109780.0,42.74811569]
[1748378362710,0.16098424,109790.0,109780.0,42.73357484]
[1748378363144,0.13056241,109790.0,109780.0,42.73357484]
[1748378366649,0.13056241,109790.0,109780.0,42.43427484]
[1748378366855,0.001,109790.0,109780.0,41.98196223]
[1748378367057,0.001,109790.0,109780.0,41.50240223]
[1748378367284,0.001,109790.0,109780.0,41.41134828]
[1748378367952,0.001,109790.0,109780.0,42.22820174]
[1748378368827,0.001,109790.0,109780.0,41.31357652]
[1748378369027,0.001,109790.0,109780.0,41.76588913]
[1748378369413,0.001,109790.0,109780.0,42.21820174]
[1748378369837,0.001,109790.0,109780.0,41.87820174]
[1748378370272,0.001,109790.0,109780.0,41.5763811]
[1748378370889,0.001,109790.0,109780.0,41.61333848]
[1748378372103,0.001,109790.0,109780.0,41.61343264]
[1748378378705,0.001,109790.0,109780.0,41.59889179]
[1748378382278,0.001,109790.0,109780.0,41.61343264]
[1748378382512,0.1021964,109820.0,109790.0,0.63300458]
[1748378382721,0.1021964,109820.0,109800.0,0.00227652]
[1748378383541,0.1021964,109820.0,109800.0,0.0116084]
[1748378383755,0.1041964,109820.0,109800.0,0.0116084]
[1748378384350,0.1031964,109820.0,109800.0,0.0116084]
[1748378384549,0.1051964,109820.0,109800.0,0.0116084]
[1748378384696,0.1051964,109820.0,109800.0,0.09736049]
[1748378384896,0.1041964,109820.0,109800.0,0.09736049]
[1748378385519,0.1323964,109820.0,109800.0,0.09736049]
[1748378385717,0.0592,109820.0,109800.0,0.12606049]
[1748378386524,0.0602,109820.0,109800.0,0.12606049]
[1748378388131,0.0312,109820.0,109800.0,0.12606049]
[1748378388332,0.0312,109820.0,109800.0,0.15676049]
[1748378394263,0.0312,109820.0,109800.0,0.75956507]
[1748378394482,0.0312,109820.0,109800.0,0.75728855]
[1748378394713,0.0312,109820.0,109800.0,0.15448397]
[1748378396010,0.0312,109820.0,109800.0,0.60644802]
[1748378397645,0.0312,109820.0,109810.0,0.00227637]
[1748378398467,0.0292,109820.0,109810.0,0.00227637]
[1748378398881,0.0312,109820.0,109810.0,0.00227637]
[1748378399290,0.0302,109820.0,109810.0,0.00227637]
[1748378399712,0.0322,109820.0,109810.0,0.00227637]
[1748378400123,0.0322,109820.0,109800.0,0.60644802]
[1748378400535,0.0322,109820.0,109810.0,0.00227637]
[1748378400868,0.004,109820.0,109810.0,0.00227637]
[1748378401072,0.002,109820.0,109810.0,0.00227637]
[1748378401514,0.002,109820.0,109810.0,0.45424042]
[1748378401722,0.002,109820.0,109810.0,0.49616942]
[1748378401930,1.13152405,109830.0,109810.0,0.58232942]
[1748378402541,0.001,109820.0,109810.0,0.58232942]
[1748378402751,0.003,109820.0,109810.0,0.58232942]
[1748378402951,1.13152405,109830.0,109810.0,0.58232942]
[1748378403370,1.13552405,109830.0,109820.0,0.08616]
[1748378404407,1.13352405,109830.0,109820.0,0.08616]
[1748378404620,1.13352405,109830.0,109820.0,0.0862942]
[1748378405714,1.13652405,109830.0,109820.0,0.0872942]
[1748378405922,1.13452405,109830.0,109820.0,0.0872942]
[1748378406132,1.13752405,109830.0,109820.0,0.0882942]
[1748378407113,1.228578,109830.0,109820.0,0.0021342]
[1748378407421,1.771596,109830.0,109820.0,0.0021342]
[1748378407843,1.78613685,109830.0,109820.0,0.0021342]
[1748378409997,1.48512364,109830.0,109820.0,0.0021342]
[1748378413294,1.54809902,109830.0,109820.0,0.0021342]
[1748378415080,0.04424085,109810.0,109780.0,40.80328327]
[1748378415288,0.97261489,109790.0,109780.0,40.80341744]
[1748378415497,1.06366884,109790.0,109780.0,40.80341744]
[1748378415716,1.07300276,109790.0,109780.0,40.80341744]
[1748378415924,1.10320276,109790.0,109780.0,40.80341744]
[1748378416125,1.19425671,109790.0,109780.0,40.80341744]
[1748378416336,1.19425671,109790.0,109780.0,40.80641744]
[1748378416543,1.47401671,109790.0,109780.0,40.80341744]
[1748378416962,1.47701671,109790.0,109780.0,40.80441744]
[1748378417490,1.48001671,109790.0,109780.0,40.80541744]
[1748378418480,1.47701671,109790.0,109780.0,40.80441744]
[1748378418767,1.47901671,109790.0,109780.0,40.80341744]
[1748378419666,1.48501671,109790.0,109780.0,40.80441744]
[1748378422103,1.20525671,109790.0,109780.0,40.80441744]
[1748378422308,1.11420276,109790.0,109780.0,40.80441744]
[1748378422508,1.39400276,109790.0,109780.0,40.80441744]
[1748378422713,1.36380276,109790.0,109780.0,40.80441744]
[1748378422920,1.35446884,109790.0,109780.0,40.80441744]
[1748378424167,1.38286884,109790.0,109780.0,40.80441744]
[1748378424376,1.47392279,109790.0,109780.0,40.80441744]
[1748378424816,0.10205395,109790.0,109780.0,40.83301744]
[1748378425029,0.98476884,109790.0,109780.0,40.86261744]
[1748378425259,1.32476884,109790.0,109780.0,40.86261744]
[1748378425915,0.6198,109790.0,109780.0,40.86161744]
[1748378426143,0.6238,109790.0,109780.0,40.86261744]
[1748378426364,0.6258,109790.0,109780.0,40.86261744]
[1748378426772,0.346,109790.0,109780.0,40.86261744]
[1748378427068,0.6258,109790.0,109780.0,40.86261744]
[1748378427748,0.006,109790.0,109780.0,40.86261744]
[1748378427956,0.2858,109790.0,109780.0,40.86261744]
[1748378431622,0.88871489,109790.0,109780.0,40.86261744]
[1748378433117,0.88871489,109790.0,109780.0,40.95367139]
[1748378433335,0.88871489,109790.0,109780.0,40.86261744]
[1748378434153,0.88867489,109790.0,109780.0,40.86261744]
[1748378436534,0.88867489,109790.0,109780.0,40.80441744]
[1748378436535,1.07106884,109790.0,109780.0,40.80441744]
[1748378436755,1.39446969,109790.0,109780.0,40.80441744]
[1748378436967,1.39446969,109790.0,109780.0,40.79713651]
[1748378437428,1.39446969,109790.0,109780.0,40.78985558]
[1748378437637,1.37992884,109790.0,109780.0,40.78985558]
[1748378440223,1.44446969,109790.0,109780.0,40.75070614]
[1748378440449,1.44446969,109790.0,109780.0,39.66924525]
[1748378440450,2.60716458,109790.0,109780.0,39.66924525]
[1748378440672,2.60716458,109790.0,109780.0,39.58156164]
[1748378440673,8.66158812,109790.0,109780.0,39.58156164]
[1748378440899,8.72427896,109790.0,109780.0,39.52834565]
[1748378441135,8.72467896,109790.0,109780.0,39.52106204]
[1748378441375,8.7206468,109790.0,109780.0,39.52006204]
[1748378441624,8.68048686,109790.0,109780.0,39.4809126]
[1748378441873,8.69448686,109790.0,109780.0,39.47562899]
[1748378442107,8.67474021,109790.0,109780.0,39.47562899]
[1748378442499,8.67474021,109790.0,109780.0,39.43547955]
[1748378442500,7.46391043,109790.0,109780.0,39.43547955]
[1748378442503,8.66974021,109790.0,109780.0,39.43547955]
[1748378442708,8.69423895,109790.0,109780.0,39.19539232]
[1748378442881,8.69423895,109790.0,109780.0,39.16352649]
[1748378443248,8.69423895,109790.0,109780.0,39.15624288]
[1748378443451,8.70323895,109790.0,109780.0,38.59265962]
[1748378443908,8.70323895,109790.0,109780.0,38.58537601]
[1748378444119,8.70323895,109790.0,109780.0,38.55351018]
[1748378444345,8.70323895,109790.0,109780.0,38.54622657]
[1748378444780,8.70323895,109790.0,109780.0,38.50707713]
[1748378445201,8.70323895,109790.0,109780.0,38.49979117]
[1748378445412,8.76586803,109790.0,109780.0,38.46062912]
[1748378445900,8.76586803,109790.0,109780.0,38.45334316]
[1748378446119,8.76586803,109790.0,109780.0,38.42146707]
[1748378446354,8.75686803,109790.0,109780.0,37.91975404]
[1748378446484,3.66223895,109790.0,109780.0,37.91875404]
[1748378446688,8.73723895,109790.0,109780.0,37.87959199]
[1748378447173,8.73723895,109790.0,109780.0,37.87230603]
[1748378447373,8.73723895,109790.0,109780.0,37.84042994]
[1748378447609,8.73723895,109790.0,109780.0,37.83314398]
[1748378448004,8.77536409,109790.0,109780.0,37.79398193]
[1748378448136,8.77536409,109790.0,109780.0,37.78669597]
[1748378448137,8.19694794,109790.0,109780.0,37.78669597]
[1748378448561,8.19694794,109790.0,109780.0,37.77941001]
[1748378448767,8.1724492,109790.0,109780.0,37.74753392]
[1748378448974,8.1724492,109790.0,109780.0,37.74024796]
[1748378449328,8.1724492,109790.0,109780.0,37.70837187]
[1748378449538,8.1724492,109790.0,109780.0,37.70108591]
[1748378449767,8.19694794,109790.0,109780.0,37.70108591]
[1748378449978,8.19694794,109790.0,109780.0,37.66192386]
[1748378450260,8.13432406,109790.0,109780.0,37.66192386]
[1748378450467,8.13432406,109790.0,109780.0,37.6546379]
[1748378450676,8.13432406,109790.0,109780.0,37.61547585]
[1748378450862,8.10982532,109790.0,109780.0,37.56993858]
[1748378451066,8.19692314,109790.0,109780.0,37.56265262]
[1748378451313,8.22233591,109790.0,109780.0,37.48523926]
[1748378451528,8.14043407,109790.0,109780.0,37.450503]
[1748378451772,8.16493281,109790.0,109780.0,37.407723]
[1748378452013,8.16493281,109790.0,109780.0,37.35921704]
[1748378452241,8.16493281,109790.0,109780.0,37.35193108]
[1748378452482,8.14043407,109790.0,109780.0,37.35193108]
[1748378452706,8.16493281,109790.0,109780.0,37.34464512]
[1748378452930,8.14043407,109790.0,109780.0,37.34464512]
[1748378453147,8.14043407,109790.0,109780.0,37.33735916]
[1748378453572,8.14043407,109790.0,109780.0,37.3300732]
[1748378454041,8.10205607,109790.0,109780.0,37.32278724]
[1748378454262,8.12711739,109790.0,109780.0,37.31550128]
[1748378454685,8.12711739,109790.0,109780.0,37.30821532]
[1748378455136,8.12712283,109790.0,109780.0,37.30092936]
[1748378455579,8.12712283,109790.0,109780.0,37.2936434]
[1748378456225,7.82230151,109790.0,109780.0,37.2936434]
[1748378456445,8.12724283,109790.0,109780.0,37.2936434]
[1748378457919,3.05218151,109790.0,109780.0,37.2936434]
[1748378458127,8.12724283,109790.0,109780.0,37.2936434]
[1748378459461,8.12724987,109790.0,109780.0,37.04629062]
[1748378460814,8.15926639,109790.0,109780.0,37.02494065]
[1748378461024,8.1592665,109790.0,109780.0,37.02494065]
[1748378461458,8.12724987,109790.0,109780.0,37.02494065]
[1748378462881,6.64089595,109790.0,109780.0,37.02494065]
[1748378463083,7.24381084,109790.0,109780.0,37.02494065]
[1748378463500,6.95393084,109790.0,109780.0,37.02494065]
[1748378463715,1.49009595,109790.0,109780.0,37.02494065]
[1748378463922,1.49009595,109790.0,109780.0,37.05424065]
[1748378463923,1.49011013,109790.0,109780.0,37.05424065]
[1748378464136,1.42745243,109790.0,109780.0,37.02494065]
[1748378466702,2.03036732,109790.0,109780.0,37.02494065]
[1748378466907,2.03036732,109790.0,109780.0,37.08504065]
[1748378467116,1.97572732,109790.0,109780.0,37.08504065]
[1748378467962,1.97572732,109790.0,109780.0,37.02494065]
[1748378468829,1.97572732,109790.0,109780.0,37.08514065]
[1748378469307,0.57071848,109790.0,109780.0,37.08514065]
[1748378469524,0.95598069,109790.0,109780.0,37.08514065]
[1748378469741,1.22331984,109790.0,109780.0,37.08514065]
[1748378469957,1.23786069,109790.0,109780.0,37.08514065]
[1748378470167,1.21286069,109790.0,109780.0,37.08514065]
[1748378470382,1.30391464,109790.0,109780.0,37.08514065]
[1748378470622,1.30991464,109790.0,109780.0,37.08514065]
[1748378471264,1.30843117,109790.0,109780.0,37.08514065]
[1748378471698,1.31543117,109790.0,109780.0,37.08523481]
[1748378471918,1.17433722,109790.0,109780.0,37.08523481]
[1748378472128,1.22433722,109790.0,109780.0,37.08523481]
[1748378472336,1.19882069,109790.0,109780.0,37.08523481]
[1748378473590,1.14882069,109790.0,109780.0,37.08523481]
[1748378473798,1.19882069,109790.0,109780.0,37.08523481]
[1748378474204,1.22434685,109790.0,109780.0,37.08514065]
[1748378474816,1.3154008,109790.0,109780.0,37.08514065]
[1748378475428,0.9835608,109790.0,109780.0,37.08514065]
[1748378475645,1.3152808,109790.0,109780.0,37.08514065]
[1748378477437,1.28975464,109790.0,109780.0,37.08514065]
[1748378477646,1.31527809,109790.0,109780.0,37.08514065]
[1748378478311,1.37799431,109790.0,109780.0,37.08514065]
[1748378480050,0.98471431,109790.0,109780.0,37.08514065]
[1748378480261,0.92199809,109790.0,109780.0,37.08514065]
[1748378480466,0.98482459,109790.0,109780.0,37.08514065]
[1748378480729,0.98482459,109790.0,109780.0,37.0637958]
[1748378480934,0.95930114,109790.0,109780.0,37.0637958]
[1748378482209,0.86824719,109790.0,109780.0,37.0637958]
[1748378484218,0.86724719,109790.0,109780.0,37.0637958]
[1748378487026,0.94044359,109790.0,109780.0,37.0637958]
[1748378490725,0.96597543,109790.0,109780.0,37.0637958]
[1748378493291,0.96607456,109790.0,109780.0,37.0637958]
[1748378493504,1.05712851,109790.0,109780.0,37.0637958]
[1748378494432,1.14404851,109790.0,109780.0,37.0637958]
[1748378494652,1.14404851,109790.0,109780.0,36.81284544]
[1748378494653,1.05559104,109790.0,109780.0,36.81284544]
[1748378495263,0.77387104,109790.0,109780.0,36.81284544]
[1748378495468,1.00475104,109790.0,109780.0,36.81284544]
[1748378495672,1.05475104,109790.0,109780.0,36.81284544]
[1748378501179,0.55962069,109790.0,109780.0,36.81284544]
[1748378501341,0.73867984,109790.0,109780.0,36.81284544]
[1748378501543,0.73392775,109790.0,109780.0,36.81284544]